[Event "Titled Tuesday Blitz June 13 Late 2023"]
[White "Djordjevic, Vuk"]
[Black "Gil Alba, Hector Luis"]
[WhiteFideId "902098"]
[BlackFideId "3504670"]
[WhiteElo "2463"]
[BlackElo "2331"]
[Result "1-0"]
[Round "5"]
[TimeControl "180+2"]
[Date "2023.06.13"]
[WhiteClock "0:00:14"]
[BlackClock "0:00:00"]
[Board "44"]

1. d4 {[%clk 0:03:00]}  Nf6 {[%clk 0:02:58]} 2. Bg5 {[%clk 0:03:01]}  Ne4 {[%clk 0:02:57]} 3. Bf4 {[%clk 0:03:01]}  d5 {[%clk 0:02:56]} 4. e3 {[%clk 0:03:00]}  c5 {[%clk 0:02:56]} 5. Bd3 {[%clk 0:03:00]}  Nc6 {[%clk 0:02:55]} 6. Bxe4 {[%clk 0:02:57]}  dxe4 {[%clk 0:02:55]} 7. d5 {[%clk 0:02:58]}  g5 {[%clk 0:02:54]} 8. Bxg5 {[%clk 0:02:55]}  Bg7 {[%clk 0:02:47]} 9. Nc3 {[%clk 0:02:51]}  Bxc3+ {[%clk 0:02:40]} 10. bxc3 {[%clk 0:02:50]}  Ne5 {[%clk 0:02:40]} 11. Ne2 {[%clk 0:02:43]}  Bg4 {[%clk 0:02:28]} 12. Bf4 {[%clk 0:02:30]}  Ng6 {[%clk 0:02:02]} 13. Bg3 {[%clk 0:02:21]}  h5 {[%clk 0:02:00]} 14. c4 {[%clk 0:02:06]}  h4 {[%clk 0:01:56]} 15. Bf4 {[%clk 0:02:06]}  h3 {[%clk 0:01:52]} 16. gxh3 {[%clk 0:01:59]}  Bf3 {[%clk 0:01:41]} 17. Rg1 {[%clk 0:01:45]}  Nxf4 {[%clk 0:01:31]} 18. exf4 {[%clk 0:01:45]}  Qd6 {[%clk 0:01:26]} 19. Qd2 {[%clk 0:01:35]}  O-O-O {[%clk 0:01:24]} 20. Rg3 {[%clk 0:01:24]}  e6 {[%clk 0:01:18]} 21. Nc3 {[%clk 0:01:20]}  exd5 {[%clk 0:01:02]} 22. cxd5 {[%clk 0:00:55]}  Qf6 {[%clk 0:00:56]} 23. Rb1 {[%clk 0:00:40]}  Qf5 {[%clk 0:00:45]} 24. Qe3 {[%clk 0:00:31]}  b6 {[%clk 0:00:00]} 25. Rb5 {[%clk 0:00:14]} 1-0


[Site "https://www.chess.com"]

[Event "Titled Tuesday Blitz June 13 Late 2023"]
[White "Nazari, Arad"]
[Black "FuenfgegenWilly"]
[WhiteFideId "12577324"]
[WhiteElo "2175"]
[BlackElo "2416"]
[Result "1-0"]
[Round "5"]
[TimeControl "180+2"]
[Date "2023.06.13"]
[WhiteClock "0:00:10"]
[BlackClock "0:00:07"]
[Board "47"]

1. e4 {[%clk 0:02:57]}  e5 {[%clk 0:02:59]} 2. f4 {[%clk 0:02:57]}  Bc5 {[%clk 0:02:57]} 3. Nf3 {[%clk 0:02:41]}  d6 {[%clk 0:02:57]} 4. c3 {[%clk 0:02:42]}  Bb6 {[%clk 0:02:54]} 5. fxe5 {[%clk 0:02:35]}  dxe5 {[%clk 0:02:54]} 6. Na3 {[%clk 0:02:36]}  Nc6 {[%clk 0:02:32]} 7. Nc4 {[%clk 0:02:26]}  Bg4 {[%clk 0:02:31]} 8. d3 {[%clk 0:02:16]}  f6 {[%clk 0:02:17]} 9. Be2 {[%clk 0:02:01]}  Nge7 {[%clk 0:02:16]} 10. Be3 {[%clk 0:01:59]}  Be6 {[%clk 0:02:13]} 11. Nxb6 {[%clk 0:01:57]}  axb6 {[%clk 0:02:13]} 12. O-O {[%clk 0:01:58]}  O-O {[%clk 0:02:09]} 13. a3 {[%clk 0:01:52]}  Kh8 {[%clk 0:01:36]} 14. d4 {[%clk 0:01:49]}  exd4 {[%clk 0:01:36]} 15. cxd4 {[%clk 0:01:49]}  Bg8 {[%clk 0:01:36]} 16. d5 {[%clk 0:01:41]}  Ne5 {[%clk 0:01:35]} 17. Nxe5 {[%clk 0:01:35]}  fxe5 {[%clk 0:01:35]} 18. Rxf8 {[%clk 0:01:28]}  Qxf8 {[%clk 0:01:36]} 19. Qc2 {[%clk 0:01:25]}  c6 {[%clk 0:01:33]} 20. d6 {[%clk 0:01:15]}  Nc8 {[%clk 0:01:30]} 21. d7 {[%clk 0:01:12]}  Nd6 {[%clk 0:00:58]} 22. Bxb6 {[%clk 0:01:09]}  Qe7 {[%clk 0:00:54]} 23. Rd1 {[%clk 0:00:59]}  Nf7 {[%clk 0:00:54]} 24. Bc4 {[%clk 0:00:38]}  Nd8 {[%clk 0:00:49]} 25. Bxg8 {[%clk 0:00:38]}  Kxg8 {[%clk 0:00:50]} 26. Qc4+ {[%clk 0:00:33]}  Qf7 {[%clk 0:00:50]} 27. Qc5 {[%clk 0:00:30]}  Qb3 {[%clk 0:00:25]} 28. Rf1 {[%clk 0:00:14]}  Ne6 {[%clk 0:00:25]} 29. Qf2 {[%clk 0:00:10]}  h6 {[%clk 0:00:10]} 30. Qf7+ {[%clk 0:00:11]}  Kh7 {[%clk 0:00:11]} 31. d8=Q {[%clk 0:00:11]}  Nxd8 {[%clk 0:00:07]} 32. Qxb3 {[%clk 0:00:10]} 1-0


[Site "https://www.chess.com"]

[Event "Titled Tuesday Blitz June 13 Late 2023"]
[White "Caruana, Fabiano"]
[Black "Kavutskiy, Konstantin"]
[WhiteFideId "2020009"]
[BlackFideId "2026384"]
[WhiteElo "2832"]
[BlackElo "2323"]
[Result "1-0"]
[Round "5"]
[TimeControl "180+2"]
[Date "2023.06.13"]
[WhiteClock "0:01:34"]
[BlackClock "0:00:04"]
[Board "49"]

1. e4 {[%clk 0:03:00]}  c5 {[%clk 0:02:59]} 2. Nf3 {[%clk 0:03:01]}  Nc6 {[%clk 0:02:58]} 3. Bb5 {[%clk 0:03:00]}  g6 {[%clk 0:02:58]} 4. Bxc6 {[%clk 0:02:59]}  dxc6 {[%clk 0:02:57]} 5. d3 {[%clk 0:02:59]}  Qc7 {[%clk 0:02:55]} 6. h3 {[%clk 0:02:58]}  e5 {[%clk 0:02:54]} 7. Nc3 {[%clk 0:02:54]}  Nf6 {[%clk 0:02:52]} 8. Be3 {[%clk 0:02:53]}  Bd6 {[%clk 0:02:49]} 9. Nd2 {[%clk 0:02:52]}  Be6 {[%clk 0:02:37]} 10. O-O {[%clk 0:02:52]}  h6 {[%clk 0:02:34]} 11. b3 {[%clk 0:02:34]}  g5 {[%clk 0:02:32]} 12. Nc4 {[%clk 0:02:34]}  O-O-O {[%clk 0:02:20]} 13. a4 {[%clk 0:02:27]}  Rhg8 {[%clk 0:02:06]} 14. a5 {[%clk 0:02:25]}  g4 {[%clk 0:01:33]} 15. h4 {[%clk 0:02:25]}  g3 {[%clk 0:01:30]} 16. fxg3 {[%clk 0:02:20]}  Bxc4 {[%clk 0:01:18]} 17. bxc4 {[%clk 0:02:20]}  Ng4 {[%clk 0:01:06]} 18. Qe2 {[%clk 0:02:16]}  Rg7 {[%clk 0:00:56]} 19. Rf3 {[%clk 0:02:07]}  Rdg8 {[%clk 0:00:56]} 20. Bd2 {[%clk 0:02:07]}  Qe7 {[%clk 0:00:49]} 21. Raf1 {[%clk 0:02:05]}  Bc7 {[%clk 0:00:43]} 22. Nd1 {[%clk 0:01:55]}  Kb8 {[%clk 0:00:43]} 23. Nf2 {[%clk 0:01:44]}  Nxf2 {[%clk 0:00:29]} 24. Qxf2 {[%clk 0:01:45]}  Qd8 {[%clk 0:00:23]} 25. Bxh6 {[%clk 0:01:45]}  Rg6 {[%clk 0:00:21]} 26. Be3 {[%clk 0:01:45]}  Bxa5 {[%clk 0:00:20]} 27. h5 {[%clk 0:01:42]}  Rg4 {[%clk 0:00:20]} 28. h6 {[%clk 0:01:42]}  Bc3 {[%clk 0:00:19]} 29. Rxf7 {[%clk 0:01:36]}  Rxg3 {[%clk 0:00:17]} 30. h7 {[%clk 0:01:37]}  Rxg2+ {[%clk 0:00:16]} 31. Qxg2 {[%clk 0:01:38]}  Rxg2+ {[%clk 0:00:16]} 32. Kxg2 {[%clk 0:01:39]}  Qh4 {[%clk 0:00:04]} 33. h8=Q+ {[%clk 0:01:34]} 1-0


[Site "https://www.chess.com"]

[Event "Titled Tuesday Blitz June 13 Late 2023"]
[White "Mendez Fortes, Eduardo Jesus"]
[Black "Ibarra Jerez, Jose Carlos"]
[WhiteFideId "3502376"]
[BlackFideId "2226332"]
[WhiteElo "2307"]
[BlackElo "2631"]
[Result "1-0"]
[Round "5"]
[TimeControl "180+2"]
[Date "2023.06.13"]
[WhiteClock "0:00:08"]
[BlackClock "0:00:05"]
[Board "51"]

1. e4 {[%clk 0:03:00]}  e6 {[%clk 0:03:00]} 2. d4 {[%clk 0:03:00]}  d5 {[%clk 0:03:01]} 3. Nd2 {[%clk 0:03:01]}  c5 {[%clk 0:03:01]} 4. exd5 {[%clk 0:03:01]}  Qxd5 {[%clk 0:03:02]} 5. Ngf3 {[%clk 0:03:01]}  cxd4 {[%clk 0:03:02]} 6. Bc4 {[%clk 0:03:02]}  Qd6 {[%clk 0:03:02]} 7. O-O {[%clk 0:03:03]}  Nf6 {[%clk 0:03:02]} 8. Nb3 {[%clk 0:03:03]}  Nc6 {[%clk 0:03:02]} 9. Nbxd4 {[%clk 0:03:04]}  Nxd4 {[%clk 0:03:03]} 10. Nxd4 {[%clk 0:03:05]}  Be7 {[%clk 0:03:03]} 11. Re1 {[%clk 0:03:03]}  O-O {[%clk 0:03:02]} 12. c3 {[%clk 0:03:04]}  Bd7 {[%clk 0:03:02]} 13. Qe2 {[%clk 0:03:03]}  Qc7 {[%clk 0:03:01]} 14. Bg5 {[%clk 0:03:01]}  Rac8 {[%clk 0:02:55]} 15. Bb3 {[%clk 0:03:00]}  Rfe8 {[%clk 0:02:52]} 16. Rad1 {[%clk 0:03:00]}  Qa5 {[%clk 0:02:35]} 17. Bh4 {[%clk 0:02:54]}  Qc5 {[%clk 0:02:25]} 18. Nf3 {[%clk 0:02:42]}  Bb5 {[%clk 0:02:23]} 19. Qc2 {[%clk 0:02:28]}  Qh5 {[%clk 0:02:15]} 20. Bg3 {[%clk 0:02:23]}  Bc6 {[%clk 0:02:13]} 21. Ne5 {[%clk 0:02:19]}  Bd5 {[%clk 0:02:13]} 22. Ba4 {[%clk 0:02:15]}  Red8 {[%clk 0:02:11]} 23. Rd2 {[%clk 0:02:08]}  Be4 {[%clk 0:02:01]} 24. Qc1 {[%clk 0:01:47]}  Bd5 {[%clk 0:01:53]} 25. Bd1 {[%clk 0:01:39]}  Qh6 {[%clk 0:01:51]} 26. Bc2 {[%clk 0:01:30]}  Nh5 {[%clk 0:01:10]} 27. Ng4 {[%clk 0:00:50]}  Qg5 {[%clk 0:01:09]} 28. Re5 {[%clk 0:00:43]}  f5 {[%clk 0:01:04]} 29. Ne3 {[%clk 0:00:32]}  Bf6 {[%clk 0:00:48]} 30. h4 {[%clk 0:00:19]}  Qh6 {[%clk 0:00:43]} 31. Nxd5 {[%clk 0:00:19]}  Bxe5 {[%clk 0:00:31]} 32. Bxe5 {[%clk 0:00:12]}  Rxd5 {[%clk 0:00:31]} 33. Bd4 {[%clk 0:00:12]}  Rcd8 {[%clk 0:00:14]} 34. Bb3 {[%clk 0:00:12]}  R5d6 {[%clk 0:00:12]} 35. Qe1 {[%clk 0:00:13]}  Nf4 {[%clk 0:00:12]} 36. g3 {[%clk 0:00:09]}  Nd5 {[%clk 0:00:12]} 37. Re2 {[%clk 0:00:08]}  Qg6 {[%clk 0:00:10]} 38. Re5 {[%clk 0:00:06]}  h6 {[%clk 0:00:10]} 39. Bc2 {[%clk 0:00:06]}  Nf4 {[%clk 0:00:10]} 40. Kh2 {[%clk 0:00:05]}  Nd5 {[%clk 0:00:10]} 41. Bb3 {[%clk 0:00:05]}  Kh7 {[%clk 0:00:09]} 42. Bc2 {[%clk 0:00:05]}  Rf8 {[%clk 0:00:08]} 43. Qe2 {[%clk 0:00:05]}  f4 {[%clk 0:00:08]} 44. Bxg6+ {[%clk 0:00:05]}  Kxg6 {[%clk 0:00:09]} 45. Qd3+ {[%clk 0:00:05]}  Kf7 {[%clk 0:00:09]} 46. Qe4 {[%clk 0:00:05]}  Re8 {[%clk 0:00:09]} 47. gxf4 {[%clk 0:00:05]}  Nf6 {[%clk 0:00:09]} 48. Qe2 {[%clk 0:00:06]}  h5 {[%clk 0:00:09]} 49. f5 {[%clk 0:00:06]}  Ng4+ {[%clk 0:00:09]} 50. Kg3 {[%clk 0:00:06]}  Nxe5 {[%clk 0:00:09]} 51. Qxe5 {[%clk 0:00:07]}  Ke7 {[%clk 0:00:08]} 52. Qxg7+ {[%clk 0:00:07]}  Kd8 {[%clk 0:00:08]} 53. f6 {[%clk 0:00:07]}  e5 {[%clk 0:00:05]} 54. f7 {[%clk 0:00:07]}  exd4 {[%clk 0:00:06]} 55. fxe8=Q+ {[%clk 0:00:07]}  Kxe8 {[%clk 0:00:07]} 56. cxd4 {[%clk 0:00:08]}  Rd7 {[%clk 0:00:06]} 57. Qe5+ {[%clk 0:00:08]}  Re7 {[%clk 0:00:07]} 58. Kf4 {[%clk 0:00:07]}  Kf7 {[%clk 0:00:07]} 59. Qxe7+ {[%clk 0:00:08]}  Kxe7 {[%clk 0:00:05]} 60. Ke5 {[%clk 0:00:08]} 1-0


[Site "https://www.chess.com"]

[Event "Titled Tuesday Blitz June 13 Late 2023"]
[White "Bortnyk, Mykola"]
[Black "robertoalejandro10"]
[WhiteFideId "14120836"]
[WhiteElo "2592"]
[BlackElo "2603"]
[Result "1-0"]
[Round "5"]
[TimeControl "180+2"]
[Date "2023.06.13"]
[WhiteClock "0:02:06"]
[BlackClock "0:01:20"]
[Board "52"]

1. e4 {[%clk 0:02:56]}  c5 {[%clk 0:02:58]} 2. c3 {[%clk 0:02:51]}  d5 {[%clk 0:02:58]} 3. exd5 {[%clk 0:02:52]}  Qxd5 {[%clk 0:02:58]} 4. d4 {[%clk 0:02:52]}  g6 {[%clk 0:02:56]} 5. dxc5 {[%clk 0:02:50]}  Qxc5 {[%clk 0:02:56]} 6. Be3 {[%clk 0:02:50]}  Qa5 {[%clk 0:02:55]} 7. Na3 {[%clk 0:02:43]}  Bd7 {[%clk 0:02:28]} 8. Qb3 {[%clk 0:02:39]}  Nc6 {[%clk 0:02:14]} 9. Nf3 {[%clk 0:02:19]}  Bg7 {[%clk 0:02:06]} 10. Bc4 {[%clk 0:02:14]}  e6 {[%clk 0:01:48]} 11. Nb5 {[%clk 0:02:14]}  Qc7 {[%clk 0:01:20]} 12. Nxc7+ {[%clk 0:02:06]} 1-0


[Site "https://www.chess.com"]

[Event "Titled Tuesday Blitz June 13 Late 2023"]
[White "Pinheiro, Iung Alicio de O."]
[Black "Kushko, Dmitriy"]
[WhiteFideId "2104350"]
[BlackFideId "14162261"]
[WhiteElo "2283"]
[BlackElo "2230"]
[Result "1-0"]
[Round "5"]
[TimeControl "180+2"]
[Date "2023.06.13"]
[WhiteClock "0:00:05"]
[BlackClock "0:00:00"]
[Board "57"]

1. e4 {[%clk 0:03:00]}  g6 {[%clk 0:03:00]} 2. d4 {[%clk 0:02:59]}  Bg7 {[%clk 0:03:00]} 3. Nc3 {[%clk 0:02:59]}  d6 {[%clk 0:03:00]} 4. Be3 {[%clk 0:02:59]}  a6 {[%clk 0:03:01]} 5. Qd2 {[%clk 0:02:57]}  b5 {[%clk 0:03:00]} 6. h4 {[%clk 0:02:57]}  h6 {[%clk 0:03:00]} 7. h5 {[%clk 0:02:49]}  g5 {[%clk 0:03:00]} 8. f4 {[%clk 0:02:50]}  gxf4 {[%clk 0:03:00]} 9. Bxf4 {[%clk 0:02:50]}  Bb7 {[%clk 0:03:00]} 10. a3 {[%clk 0:02:45]}  Nd7 {[%clk 0:03:00]} 11. Nf3 {[%clk 0:02:42]}  c5 {[%clk 0:02:58]} 12. d5 {[%clk 0:02:39]}  Ngf6 {[%clk 0:02:49]} 13. Bd3 {[%clk 0:02:25]}  Ng4 {[%clk 0:02:46]} 14. Nh4 {[%clk 0:02:02]}  Qb6 {[%clk 0:01:46]} 15. Nf5 {[%clk 0:01:57]}  Bf6 {[%clk 0:01:46]} 16. a4 {[%clk 0:01:31]}  c4 {[%clk 0:01:31]} 17. Bf1 {[%clk 0:01:28]}  b4 {[%clk 0:01:22]} 18. Nd1 {[%clk 0:01:24]}  c3 {[%clk 0:01:17]} 19. bxc3 {[%clk 0:01:20]}  bxc3 {[%clk 0:01:17]} 20. Qe2 {[%clk 0:01:17]}  Nde5 {[%clk 0:01:17]} 21. Nfe3 {[%clk 0:00:52]}  Bc8 {[%clk 0:01:13]} 22. Nf2 {[%clk 0:00:43]}  Nxf2 {[%clk 0:01:05]} 23. Qxf2 {[%clk 0:00:42]}  Bd7 {[%clk 0:01:03]} 24. Nc4 {[%clk 0:00:38]}  Nxc4 {[%clk 0:00:53]} 25. Bxc4 {[%clk 0:00:37]}  Bd4 {[%clk 0:00:52]} 26. Qe2 {[%clk 0:00:36]}  Rg8 {[%clk 0:00:44]} 27. Bb3 {[%clk 0:00:29]}  Qc5 {[%clk 0:00:28]} 28. g3 {[%clk 0:00:17]}  a5 {[%clk 0:00:24]} 29. Bc4 {[%clk 0:00:12]}  Rb8 {[%clk 0:00:17]} 30. Qd3 {[%clk 0:00:10]}  Rb4 {[%clk 0:00:06]} 31. Bb3 {[%clk 0:00:08]}  f6 {[%clk 0:00:00]} 32. Rh4 {[%clk 0:00:05]} 1-0


[Site "https://www.chess.com"]

[Event "Titled Tuesday Blitz June 13 Late 2023"]
[White "Oro, Faustino"]
[Black "Kokoszczynski, Jan"]
[WhiteFideId "20000197"]
[BlackFideId "1174460"]
[WhiteElo "1984"]
[BlackElo "2139"]
[Result "1-0"]
[Round "5"]
[TimeControl "180+2"]
[Date "2023.06.13"]
[WhiteClock "0:00:17"]
[BlackClock "0:00:00"]
[Board "62"]

1. e4 {[%clk 0:03:00]}  e5 {[%clk 0:02:55]} 2. Nf3 {[%clk 0:03:01]}  Nc6 {[%clk 0:02:55]} 3. Bb5 {[%clk 0:03:01]}  a6 {[%clk 0:02:55]} 4. Ba4 {[%clk 0:03:01]}  Nf6 {[%clk 0:02:54]} 5. O-O {[%clk 0:03:00]}  Be7 {[%clk 0:02:52]} 6. Re1 {[%clk 0:02:59]}  b5 {[%clk 0:02:51]} 7. Bb3 {[%clk 0:02:59]}  d6 {[%clk 0:02:52]} 8. c3 {[%clk 0:03:00]}  O-O {[%clk 0:02:50]} 9. h3 {[%clk 0:03:00]}  Bb7 {[%clk 0:02:48]} 10. d4 {[%clk 0:02:55]}  exd4 {[%clk 0:02:49]} 11. cxd4 {[%clk 0:02:54]}  Nd7 {[%clk 0:02:49]} 12. Nc3 {[%clk 0:02:46]}  Na5 {[%clk 0:02:34]} 13. Bc2 {[%clk 0:02:45]}  c5 {[%clk 0:02:34]} 14. Bf4 {[%clk 0:02:41]}  cxd4 {[%clk 0:02:09]} 15. Nxd4 {[%clk 0:02:36]}  Ne5 {[%clk 0:02:08]} 16. Nd5 {[%clk 0:02:30]}  Bxd5 {[%clk 0:02:04]} 17. exd5 {[%clk 0:02:30]}  Bf6 {[%clk 0:02:04]} 18. Rb1 {[%clk 0:01:59]}  g6 {[%clk 0:01:56]} 19. Be4 {[%clk 0:01:53]}  Qb6 {[%clk 0:01:38]} 20. Nf3 {[%clk 0:01:42]}  Rfe8 {[%clk 0:01:25]} 21. b3 {[%clk 0:01:30]}  b4 {[%clk 0:01:19]} 22. Be3 {[%clk 0:01:18]}  Qd8 {[%clk 0:00:45]} 23. Nd4 {[%clk 0:01:15]}  Qd7 {[%clk 0:00:34]} 24. Bc2 {[%clk 0:01:05]}  Qb7 {[%clk 0:00:28]} 25. Be4 {[%clk 0:00:51]}  Qd7 {[%clk 0:00:28]} 26. Bf4 {[%clk 0:00:46]}  Nb7 {[%clk 0:00:25]} 27. Nc6 {[%clk 0:00:43]}  Nc5 {[%clk 0:00:22]} 28. Bxe5 {[%clk 0:00:42]}  Bxe5 {[%clk 0:00:21]} 29. Bf3 {[%clk 0:00:35]}  Bc3 {[%clk 0:00:21]} 30. Rxe8+ {[%clk 0:00:35]}  Rxe8 {[%clk 0:00:22]} 31. Qc2 {[%clk 0:00:36]}  h5 {[%clk 0:00:16]} 32. a3 {[%clk 0:00:32]}  a5 {[%clk 0:00:14]} 33. Nxa5 {[%clk 0:00:29]}  Ra8 {[%clk 0:00:13]} 34. Nc4 {[%clk 0:00:28]}  Qb7 {[%clk 0:00:06]} 35. axb4 {[%clk 0:00:25]}  Qxb4 {[%clk 0:00:06]} 36. Nxd6 {[%clk 0:00:25]}  Bg7 {[%clk 0:00:05]} 37. Nc4 {[%clk 0:00:24]}  Rc8 {[%clk 0:00:03]} 38. d6 {[%clk 0:00:22]}  Rd8 {[%clk 0:00:03]} 39. Bd5 {[%clk 0:00:20]}  Na6 {[%clk 0:00:02]} 40. Qxg6 {[%clk 0:00:18]}  Rd7 {[%clk 0:00:00]} 41. Qf5 {[%clk 0:00:17]} 1-0


[Site "https://www.chess.com"]

[Event "Titled Tuesday Blitz June 13 Late 2023"]
[White "Skvortsov, Andrei"]
[Black "Manea, Alexandru"]
[WhiteFideId "24108600"]
[BlackFideId "1207660"]
[WhiteElo "2259"]
[BlackElo "2226"]
[Result "0-1"]
[Round "5"]
[TimeControl "180+2"]
[Date "2023.06.13"]
[WhiteClock "0:00:06"]
[BlackClock "0:01:24"]
[Board "64"]

1. e4 {[%clk 0:03:00]}  Nf6 {[%clk 0:02:55]} 2. e5 {[%clk 0:02:58]}  Nd5 {[%clk 0:02:54]} 3. c4 {[%clk 0:02:56]}  Nb6 {[%clk 0:02:54]} 4. d4 {[%clk 0:02:56]}  d6 {[%clk 0:02:54]} 5. exd6 {[%clk 0:02:57]}  cxd6 {[%clk 0:02:54]} 6. Be3 {[%clk 0:02:52]}  g6 {[%clk 0:02:54]} 7. b3 {[%clk 0:02:51]}  Bg7 {[%clk 0:02:54]} 8. Nc3 {[%clk 0:02:51]}  O-O {[%clk 0:02:54]} 9. Rc1 {[%clk 0:02:51]}  Bf5 {[%clk 0:02:54]} 10. Be2 {[%clk 0:02:51]}  Nc6 {[%clk 0:02:53]} 11. Nf3 {[%clk 0:02:47]}  d5 {[%clk 0:02:53]} 12. c5 {[%clk 0:02:45]}  Nc8 {[%clk 0:02:53]} 13. h4 {[%clk 0:02:41]}  Bg4 {[%clk 0:02:53]} 14. Ng1 {[%clk 0:02:39]}  Bxe2 {[%clk 0:02:50]} 15. Ngxe2 {[%clk 0:02:40]}  h5 {[%clk 0:02:49]} 16. Qd2 {[%clk 0:02:38]}  e6 {[%clk 0:02:49]} 17. Bg5 {[%clk 0:02:35]}  N8e7 {[%clk 0:02:49]} 18. a3 {[%clk 0:02:32]}  Qd7 {[%clk 0:02:47]} 19. b4 {[%clk 0:02:32]}  Nf5 {[%clk 0:02:45]} 20. Be3 {[%clk 0:02:30]}  Rfe8 {[%clk 0:02:44]} 21. b5 {[%clk 0:02:24]}  Na5 {[%clk 0:02:43]} 22. Qd3 {[%clk 0:02:20]}  Nc4 {[%clk 0:02:39]} 23. a4 {[%clk 0:02:08]}  a6 {[%clk 0:02:37]} 24. Bf4 {[%clk 0:02:04]}  axb5 {[%clk 0:02:35]} 25. axb5 {[%clk 0:02:05]}  Ra3 {[%clk 0:02:34]} 26. Rh3 {[%clk 0:02:04]}  Bf6 {[%clk 0:02:33]} 27. Qb1 {[%clk 0:01:34]}  Nxd4 {[%clk 0:02:24]} 28. Nxd4 {[%clk 0:01:26]}  Bxd4 {[%clk 0:02:24]} 29. Rg3 {[%clk 0:01:21]}  Bg7 {[%clk 0:02:05]} 30. Ne2 {[%clk 0:00:53]}  Rxg3 {[%clk 0:01:57]} 31. Bxg3 {[%clk 0:00:46]}  Ra8 {[%clk 0:01:56]} 32. Qb4 {[%clk 0:00:41]}  Ra2 {[%clk 0:01:53]} 33. Nc3 {[%clk 0:00:39]}  Rb2 {[%clk 0:01:52]} 34. Qa4 {[%clk 0:00:35]}  Bxc3+ {[%clk 0:01:47]} 35. Rxc3 {[%clk 0:00:36]}  Qxb5 {[%clk 0:01:45]} 36. Rxc4 {[%clk 0:00:11]}  dxc4 {[%clk 0:01:34]} 37. Qa8+ {[%clk 0:00:11]}  Kh7 {[%clk 0:01:34]} 38. Be5 {[%clk 0:00:07]}  Qb4+ {[%clk 0:01:30]} 39. Kf1 {[%clk 0:00:06]}  Rb1+ {[%clk 0:01:30]} 40. Ke2 {[%clk 0:00:07]}  Qe1+ {[%clk 0:01:27]} 41. Kf3 {[%clk 0:00:07]}  Qxe5 {[%clk 0:01:27]} 42. Qe8 {[%clk 0:00:06]}  Rb3# {[%clk 0:01:24]} 0-1


[Site "https://www.chess.com"]

[Event "Titled Tuesday Blitz June 13 Late 2023"]
[White "Korchmar, Vasiliy"]
[Black "Prydun, Andriy"]
[WhiteFideId "24131750"]
[BlackFideId "14145898"]
[WhiteElo "2370"]
[BlackElo "2164"]
[Result "1-0"]
[Round "5"]
[TimeControl "180+2"]
[Date "2023.06.13"]
[WhiteClock "0:00:08"]
[BlackClock "0:00:00"]
[Board "66"]

1. e4 {[%clk 0:03:00]}  c6 {[%clk 0:02:59]} 2. d4 {[%clk 0:03:00]}  d5 {[%clk 0:02:59]} 3. e5 {[%clk 0:03:01]}  Bf5 {[%clk 0:02:59]} 4. Nd2 {[%clk 0:03:01]}  e6 {[%clk 0:02:51]} 5. Nb3 {[%clk 0:03:02]}  Nd7 {[%clk 0:02:52]} 6. Nf3 {[%clk 0:03:02]}  f6 {[%clk 0:02:52]} 7. Bd3 {[%clk 0:02:58]}  Bg4 {[%clk 0:02:45]} 8. h3 {[%clk 0:02:55]}  Bh5 {[%clk 0:02:40]} 9. exf6 {[%clk 0:02:44]}  Ngxf6 {[%clk 0:02:36]} 10. Bf4 {[%clk 0:02:44]}  c5 {[%clk 0:02:11]} 11. dxc5 {[%clk 0:02:28]}  e5 {[%clk 0:02:09]} 12. g4 {[%clk 0:02:21]}  exf4 {[%clk 0:02:01]} 13. gxh5 {[%clk 0:02:21]}  Bxc5 {[%clk 0:01:51]} 14. Qd2 {[%clk 0:01:56]}  Qe7+ {[%clk 0:01:48]} 15. Kf1 {[%clk 0:01:56]}  O-O {[%clk 0:01:45]} 16. Re1 {[%clk 0:01:56]}  Ne4 {[%clk 0:01:43]} 17. Bxe4 {[%clk 0:01:50]}  dxe4 {[%clk 0:01:43]} 18. Qd5+ {[%clk 0:01:51]}  Qf7 {[%clk 0:01:41]} 19. Qxf7+ {[%clk 0:01:48]}  Rxf7 {[%clk 0:01:42]} 20. Rxe4 {[%clk 0:01:48]}  Bd6 {[%clk 0:01:38]} 21. Kg2 {[%clk 0:01:38]}  Nf6 {[%clk 0:01:36]} 22. Re6 {[%clk 0:01:36]}  Bc7 {[%clk 0:01:35]} 23. h6 {[%clk 0:01:33]}  gxh6 {[%clk 0:01:34]} 24. Rd1 {[%clk 0:01:26]}  Re8 {[%clk 0:01:30]} 25. Nc5 {[%clk 0:01:23]}  Bb6 {[%clk 0:01:07]} 26. Rxe8+ {[%clk 0:01:15]}  Nxe8 {[%clk 0:01:08]} 27. Ne6 {[%clk 0:01:16]}  Rf6 {[%clk 0:01:03]} 28. Nfd4 {[%clk 0:01:15]}  f3+ {[%clk 0:01:00]} 29. Kg3 {[%clk 0:01:15]}  Ng7 {[%clk 0:00:53]} 30. Re1 {[%clk 0:01:12]}  Nh5+ {[%clk 0:00:47]} 31. Kg4 {[%clk 0:01:09]}  Bxd4 {[%clk 0:00:43]} 32. Nxd4 {[%clk 0:01:03]}  Rf4+ {[%clk 0:00:43]} 33. Kxh5 {[%clk 0:01:04]}  Rxd4 {[%clk 0:00:43]} 34. Kxh6 {[%clk 0:00:51]}  Rd2 {[%clk 0:00:42]} 35. Re7 {[%clk 0:00:45]}  Rxf2 {[%clk 0:00:41]} 36. Rxb7 {[%clk 0:00:25]}  Rxc2 {[%clk 0:00:33]} 37. Rb3 {[%clk 0:00:15]}  Rc6+ {[%clk 0:00:18]} 38. Kg5 {[%clk 0:00:13]}  Rg6+ {[%clk 0:00:17]} 39. Kf5 {[%clk 0:00:06]}  f2 {[%clk 0:00:16]} 40. Rf3 {[%clk 0:00:06]}  Rg7 {[%clk 0:00:14]} 41. Ke6 {[%clk 0:00:05]}  Rg6+ {[%clk 0:00:13]} 42. Ke5 {[%clk 0:00:05]}  Rg2 {[%clk 0:00:06]} 43. b4 {[%clk 0:00:05]}  Rh2 {[%clk 0:00:02]} 44. a4 {[%clk 0:00:04]}  Rxh3 {[%clk 0:00:02]} 45. Rxf2 {[%clk 0:00:04]}  Rb3 {[%clk 0:00:02]} 46. Rf4 {[%clk 0:00:04]}  Ra3 {[%clk 0:00:02]} 47. a5 {[%clk 0:00:04]}  Rb3 {[%clk 0:00:02]} 48. Kd5 {[%clk 0:00:04]}  Kg7 {[%clk 0:00:02]} 49. Kc5 {[%clk 0:00:05]}  Rc3+ {[%clk 0:00:03]} 50. Kb5 {[%clk 0:00:05]}  Rc7 {[%clk 0:00:03]} 51. Ka6 {[%clk 0:00:04]}  Kg6 {[%clk 0:00:02]} 52. b5 {[%clk 0:00:03]}  Kg5 {[%clk 0:00:03]} 53. Rf8 {[%clk 0:00:03]}  h5 {[%clk 0:00:03]} 54. Ra8 {[%clk 0:00:03]}  h4 {[%clk 0:00:02]} 55. Rxa7 {[%clk 0:00:04]}  Rxa7+ {[%clk 0:00:02]} 56. Kxa7 {[%clk 0:00:05]}  h3 {[%clk 0:00:03]} 57. b6 {[%clk 0:00:05]}  h2 {[%clk 0:00:03]} 58. b7 {[%clk 0:00:06]}  h1=Q {[%clk 0:00:04]} 59. b8=Q {[%clk 0:00:07]}  Qg1+ {[%clk 0:00:04]} 60. Qb6 {[%clk 0:00:07]}  Qa1 {[%clk 0:00:04]} 61. a6 {[%clk 0:00:07]}  Kf5 {[%clk 0:00:05]} 62. Qc5+ {[%clk 0:00:07]}  Ke6 {[%clk 0:00:05]} 63. Qc6+ {[%clk 0:00:07]}  Ke7 {[%clk 0:00:04]} 64. Kb7 {[%clk 0:00:07]}  Qb2+ {[%clk 0:00:04]} 65. Qb6 {[%clk 0:00:08]}  Qg2+ {[%clk 0:00:05]} 66. Kb8 {[%clk 0:00:08]}  Kd7 {[%clk 0:00:00]} 67. Qb7+ {[%clk 0:00:08]} 1-0


[Site "https://www.chess.com"]